[Event "Early-Titled-Tuesday-Blitz-January-30-2024"]
[Site "Chess.com"]
[Date "2024.01.30"]
[Round "11"]
[White "garfield_pg"]
[Black "SirGerhard"]
[Result "1-0"]
[WhiteElo "2487"]
[BlackElo "2716"]
[TimeControl "180+1"]
[EndTime "10:12:50 PST"]
[Termination "garfield_pg won by resignation"]

1. d4 {[%clk 0:03:00.9]} 1... Nf6 {[%clk 0:02:58.6]} 2. Bf4 {[%clk 0:03:00.7]}
2... e6 {[%clk 0:02:58.3]} 3. e3 {[%clk 0:03:01]} 3... b6 {[%clk 0:02:58.5]} 4.
Qf3 {[%clk 0:03:00.9]} 4... Nc6 {[%clk 0:02:58.6]} 5. Nc3 {[%clk 0:02:58.1]}
5... Bb7 {[%clk 0:02:58.7]} 6. O-O-O {[%clk 0:02:55]} 6... Bb4 {[%clk
0:02:57.3]} 7. Nge2 {[%clk 0:02:48.5]} 7... O-O {[%clk 0:02:56.8]} 8. h4 {[%clk
0:02:44.3]} 8... Qc8 {[%clk 0:02:44.8]} 9. Qh3 {[%clk 0:02:40.1]} 9... Ne7
{[%clk 0:02:29.7]} 10. Bg5 {[%clk 0:02:14.7]} 10... Ned5 {[%clk 0:02:28.6]} 11.
Nxd5 {[%clk 0:02:04]} 11... Nxd5 {[%clk 0:02:27.9]} 12. e4 {[%clk 0:02:02.9]}
12... Nf6 {[%clk 0:02:15.3]} 13. f3 {[%clk 0:01:42.1]} 13... d5 {[%clk
0:02:02.8]} 14. e5 {[%clk 0:01:39.4]} 14... Nd7 {[%clk 0:01:54.5]} 15. a3 {[%clk
0:01:29.8]} 15... a5 {[%clk 0:01:54.3]} 16. axb4 {[%clk 0:01:29.7]} 16... axb4
{[%clk 0:01:54.5]} 17. Be7 {[%clk 0:01:25.6]} 17... Re8 {[%clk 0:01:54.3]} 18.
Bxb4 {[%clk 0:01:25.2]} 18... c5 {[%clk 0:01:54.6]} 19. Bc3 {[%clk 0:01:24.1]}
19... b5 {[%clk 0:01:44.8]} 20. dxc5 {[%clk 0:01:13.3]} 20... Qxc5 {[%clk
0:01:44.5]} 21. f4 {[%clk 0:00:43.1]} 21... Nb6 {[%clk 0:01:39.6]} 22. Nd4
{[%clk 0:00:29.6]} 22... b4 {[%clk 0:01:37]} 23. Nb3 {[%clk 0:00:27.7]} 23...
bxc3 {[%clk 0:01:30.6]} 24. Qxc3 {[%clk 0:00:21.7]} 24... Qxc3 {[%clk
0:01:24.4]} 25. bxc3 {[%clk 0:00:22.6]} 25... Rec8 {[%clk 0:01:22.6]} 26. Rh3
{[%clk 0:00:17.7]} 26... Na4 {[%clk 0:01:19.7]} 27. Kd2 {[%clk 0:00:15.2]} 27...
Nb2 {[%clk 0:01:18.6]} 28. Rb1 {[%clk 0:00:11.7]} 28... Ra2 {[%clk 0:01:18.7]}
29. Kc1 {[%clk 0:00:10.7]} 29... Na4 {[%clk 0:01:16.8]} 30. Nd4 {[%clk
0:00:06.7]} 30... Ba8 {[%clk 0:01:09.9]} 31. Ba6 {[%clk 0:00:04.4]} 31... Rf8
{[%clk 0:01:08.4]} 32. Bb5 {[%clk 0:00:04.8]} 32... Nc5 {[%clk 0:01:07.8]} 33.
Bd3 {[%clk 0:00:02.1]} 33... g6 {[%clk 0:00:59]} 34. g4 {[%clk 0:00:02]} 34...
f6 {[%clk 0:00:51.4]} 35. exf6 {[%clk 0:00:01.7]} 35... Rxf6 {[%clk 0:00:50.4]}
36. f5 {[%clk 0:00:01.5]} 36... gxf5 {[%clk 0:00:43.7]} 37. gxf5 {[%clk
0:00:02.4]} 37... e5 {[%clk 0:00:43.4]} 38. Rb8+ {[%clk 0:00:02.6]} 38... Rf8
{[%clk 0:00:43.5]} 39. Rxf8+ {[%clk 0:00:02.9]} 39... Kxf8 {[%clk 0:00:43.7]}
40. Nb3 {[%clk 0:00:03.2]} 40... Nxb3+ {[%clk 0:00:36.9]} 41. cxb3 {[%clk
0:00:04.1]} 41... Ke7 {[%clk 0:00:32]} 42. Rg3 {[%clk 0:00:04.3]} 42... d4
{[%clk 0:00:26.7]} 43. cxd4 {[%clk 0:00:04.1]} 43... exd4 {[%clk 0:00:27.2]} 44.
Rg7+ {[%clk 0:00:03.3]} 44... Kf6 {[%clk 0:00:27.5]} 45. Rxh7 {[%clk 0:00:04]}
45... Bd5 {[%clk 0:00:27.7]} 46. Rc7 {[%clk 0:00:03.4]} 46... Bxb3 {[%clk
0:00:27.2]} 47. h5 {[%clk 0:00:03.5]} 47... Rh2 {[%clk 0:00:26.7]} 48. h6 {[%clk
0:00:03.4]} 48... Ke5 {[%clk 0:00:25.3]} 49. h7 {[%clk 0:00:03.2]} 49... Kf4
{[%clk 0:00:24.6]} 50. f6 {[%clk 0:00:03.7]} 50... Ke3 {[%clk 0:00:24.6]} 51.
Rc8 {[%clk 0:00:03.1]} 51... Kxd3 {[%clk 0:00:23.9]} 52. h8=Q {[%clk 0:00:03.5]}
52... Rd2 {[%clk 0:00:20.9]} 53. Qh7+ {[%clk 0:00:03.1]} 53... Ke2 {[%clk
0:00:20.8]} 54. Re8+ {[%clk 0:00:03.6]} 54... Kf3 {[%clk 0:00:19]} 55. Qe4+
{[%clk 0:00:03.8]} 55... Kf2 {[%clk 0:00:18.8]} 56. Kxd2 {[%clk 0:00:03.6]} 1-0

[Event "Early-Titled-Tuesday-Blitz-January-30-2024"]
[Site "Chess.com"]
[Date "2024.01.30"]
[Round "11"]
[White "DmitriiZakurdaev"]
[Black "Manukyan_Artak"]
[Result "0-1"]
[WhiteElo "2450"]
[BlackElo "2601"]
[TimeControl "180+1"]
[EndTime "10:12:50 PST"]
[Termination "Manukyan_Artak won on time"]

1. d4 {[%clk 0:02:50]} 1... d5 {[%clk 0:02:55.7]} 2. c4 {[%clk 0:02:49.8]} 2...
dxc4 {[%clk 0:02:55.5]} 3. Nf3 {[%clk 0:02:48.1]} 3... Nf6 {[%clk 0:02:52.2]} 4.
e3 {[%clk 0:02:48.1]} 4... Bg4 {[%clk 0:02:47]} 5. Bxc4 {[%clk 0:02:47.5]} 5...
e6 {[%clk 0:02:46.7]} 6. h3 {[%clk 0:02:45.9]} 6... Bh5 {[%clk 0:02:45.6]} 7.
O-O {[%clk 0:02:45.4]} 7... Nbd7 {[%clk 0:02:33.1]} 8. Nc3 {[%clk 0:02:39]} 8...
a6 {[%clk 0:02:19.7]} 9. a4 {[%clk 0:02:16.2]} 9... c5 {[%clk 0:02:12.6]} 10.
Be2 {[%clk 0:01:56.7]} 10... Be7 {[%clk 0:02:06]} 11. d5 {[%clk 0:01:43.1]}
11... exd5 {[%clk 0:02:02.5]} 12. Nxd5 {[%clk 0:01:42.9]} 12... O-O {[%clk
0:02:02.6]} 13. Nxe7+ {[%clk 0:01:38.5]} 13... Qxe7 {[%clk 0:02:02.6]} 14. b3
{[%clk 0:01:28.8]} 14... Rad8 {[%clk 0:01:40.1]} 15. Qc2 {[%clk 0:01:22]} 15...
Bg6 {[%clk 0:01:36.3]} 16. Qa2 {[%clk 0:01:08.7]} 16... Ne4 {[%clk 0:01:20.4]}
17. Bb2 {[%clk 0:01:00.9]} 17... Ndf6 {[%clk 0:01:12.8]} 18. Rad1 {[%clk
0:00:58.6]} 18... Nd5 {[%clk 0:01:00.6]} 19. Qa1 {[%clk 0:00:53.2]} 19... f6
{[%clk 0:00:54.3]} 20. Bc4 {[%clk 0:00:40.1]} 20... Bf7 {[%clk 0:00:45.4]} 21.
Nd2 {[%clk 0:00:21.9]} 21... Nxd2 {[%clk 0:00:23.6]} 22. Rxd2 {[%clk 0:00:22.8]}
22... Nb4 {[%clk 0:00:24.1]} 23. Rfd1 {[%clk 0:00:15.6]} 23... Bxc4 {[%clk
0:00:16.6]} 24. bxc4 {[%clk 0:00:14.1]} 24... Rxd2 {[%clk 0:00:17.2]} 25. Rxd2
{[%clk 0:00:15]} 25... Rd8 {[%clk 0:00:17.5]} 26. Qd1 {[%clk 0:00:14.6]} 26...
Rxd2 {[%clk 0:00:13.9]} 27. Qxd2 {[%clk 0:00:15.5]} 27... Kf8 {[%clk 0:00:13.4]}
28. Ba3 {[%clk 0:00:14.7]} 28... a5 {[%clk 0:00:12.8]} 29. Bb2 {[%clk
0:00:08.2]} 29... Ke8 {[%clk 0:00:12.4]} 30. Qe2 {[%clk 0:00:07.7]} 30... Qe4
{[%clk 0:00:11.3]} 31. Qh5+ {[%clk 0:00:07.6]} 31... Kf8 {[%clk 0:00:08.4]} 32.
Qxc5+ {[%clk 0:00:07.4]} 32... Kg8 {[%clk 0:00:08.3]} 33. Qc8+ {[%clk
0:00:06.9]} 33... Kf7 {[%clk 0:00:08.3]} 34. Qc7+ {[%clk 0:00:07.1]} 34... Kg6
{[%clk 0:00:08]} 35. Bd4 {[%clk 0:00:07.7]} 35... Qb1+ {[%clk 0:00:03.8]} 36.
Kh2 {[%clk 0:00:07.6]} 36... Nd3 {[%clk 0:00:03.9]} 37. Qg3+ {[%clk 0:00:06.2]}
37... Kf7 {[%clk 0:00:03.7]} 38. Qc7+ {[%clk 0:00:05.7]} 38... Kg6 {[%clk
0:00:04.3]} 39. h4 {[%clk 0:00:05.5]} 39... h5 {[%clk 0:00:04.3]} 40. Qg3+
{[%clk 0:00:03.9]} 40... Kf7 {[%clk 0:00:03.9]} 41. Qf3 {[%clk 0:00:04.4]} 41...
g6 {[%clk 0:00:03.6]} 42. g4 {[%clk 0:00:02.9]} 42... hxg4 {[%clk 0:00:03.4]}
43. Qxg4 {[%clk 0:00:03.8]} 43... Nxf2 {[%clk 0:00:03.8]} 44. Qd7+ {[%clk
0:00:03.1]} 44... Kg8 {[%clk 0:00:03.9]} 45. Bxf6 {[%clk 0:00:01.4]} 45... Ng4+
{[%clk 0:00:01.5]} 0-1

[Event "Early-Titled-Tuesday-Blitz-January-30-2024"]
[Site "Chess.com"]
[Date "2024.01.30"]
[Round "11"]
[White "HamedWafa4"]
[Black "Anton_Demchenko"]
[Result "0-1"]
[WhiteElo "2813"]
[BlackElo "2941"]
[TimeControl "180+1"]
[EndTime "10:12:51 PST"]
[Termination "Anton_Demchenko won by resignation"]

1. e4 {[%clk 0:03:00.9]} 1... e5 {[%clk 0:02:59.1]} 2. Nf3 {[%clk 0:03:00.4]}
2... Nc6 {[%clk 0:02:59.5]} 3. Nc3 {[%clk 0:02:57.7]} 3... Nf6 {[%clk
0:02:59.2]} 4. Bc4 {[%clk 0:02:54.7]} 4... Nxe4 {[%clk 0:02:57.6]} 5. O-O {[%clk
0:02:54.6]} 5... Nxc3 {[%clk 0:02:48.6]} 6. dxc3 {[%clk 0:02:55.5]} 6... f6
{[%clk 0:02:16.2]} 7. b4 {[%clk 0:02:54.1]} 7... Qe7 {[%clk 0:02:12.1]} 8. Re1
{[%clk 0:02:53.4]} 8... d6 {[%clk 0:02:11.7]} 9. Nd4 {[%clk 0:02:30.3]} 9... Bd7
{[%clk 0:02:03.6]} 10. b5 {[%clk 0:02:22.7]} 10... Na5 {[%clk 0:01:23.4]} 11.
Bd5 {[%clk 0:02:21.6]} 11... c6 {[%clk 0:01:23.8]} 12. bxc6 {[%clk 0:02:18.3]}
12... bxc6 {[%clk 0:01:24.7]} 13. Bf3 {[%clk 0:02:10.6]} 13... Qd8 {[%clk
0:01:09]} 14. Bg4 {[%clk 0:01:54]} 14... Qc8 {[%clk 0:00:48.5]} 15. Bh5+ {[%clk
0:01:08.1]} 15... g6 {[%clk 0:00:47.3]} 16. Bf3 {[%clk 0:01:08.6]} 16... Be7
{[%clk 0:00:41.8]} 17. Bh6 {[%clk 0:01:07.3]} 17... Nb7 {[%clk 0:00:32.6]} 18.
Rb1 {[%clk 0:01:01.6]} 18... Nd8 {[%clk 0:00:32.5]} 19. h4 {[%clk 0:00:51.7]}
19... Nf7 {[%clk 0:00:32.3]} 20. Qd2 {[%clk 0:00:43.1]} 20... Bf8 {[%clk
0:00:24.6]} 21. Bxf8 {[%clk 0:00:40.6]} 21... Kxf8 {[%clk 0:00:25.5]} 22. Ne2
{[%clk 0:00:35.3]} 22... Kg7 {[%clk 0:00:24.2]} 23. Ng3 {[%clk 0:00:35.6]} 23...
Qc7 {[%clk 0:00:22]} 24. h5 {[%clk 0:00:34]} 24... Rhd8 {[%clk 0:00:21.9]} 25.
c4 {[%clk 0:00:33.8]} 25... Be6 {[%clk 0:00:19.9]} 26. Re4 {[%clk 0:00:20]}
26... d5 {[%clk 0:00:17.2]} 27. Rh4 {[%clk 0:00:18.2]} 27... g5 {[%clk
0:00:17.4]} 28. Rh2 {[%clk 0:00:17.4]} 28... e4 {[%clk 0:00:16]} 29. h6+ {[%clk
0:00:15.5]} 29... Kf8 {[%clk 0:00:12.6]} 30. Bh5 {[%clk 0:00:15.9]} 30... Ne5
{[%clk 0:00:10.8]} 31. c5 {[%clk 0:00:15.4]} 31... Rab8 {[%clk 0:00:10.4]} 32.
Re1 {[%clk 0:00:13.3]} 32... Qe7 {[%clk 0:00:10.5]} 33. Ne2 {[%clk 0:00:10.3]}
33... Qxc5 {[%clk 0:00:09.1]} 34. Nd4 {[%clk 0:00:10.9]} 34... Bg8 {[%clk
0:00:06.4]} 35. f4 {[%clk 0:00:11]} 35... exf3 {[%clk 0:00:06.3]} 36. Bxf3
{[%clk 0:00:11.2]} 36... Re8 {[%clk 0:00:05.7]} 37. c3 {[%clk 0:00:10.6]} 37...
Nc4 {[%clk 0:00:05.3]} 38. Qd1 {[%clk 0:00:09.8]} 38... Rxe1+ {[%clk 0:00:05.6]}
39. Qxe1 {[%clk 0:00:10.7]} 39... Qd6 {[%clk 0:00:04.9]} 40. Rh3 {[%clk
0:00:10.1]} 40... Qe5 {[%clk 0:00:05.3]} 41. Qf2 {[%clk 0:00:10]} 41... Rb1+
{[%clk 0:00:04.6]} 42. Qf1 {[%clk 0:00:07.8]} 42... Rxf1+ {[%clk 0:00:04.5]} 43.
Kxf1 {[%clk 0:00:08.3]} 43... Nd2+ {[%clk 0:00:04.6]} 44. Kf2 {[%clk 0:00:08.4]}
44... c5 {[%clk 0:00:05.1]} 45. Ne2 {[%clk 0:00:08.3]} 45... g4 {[%clk
0:00:04.8]} 46. Bxg4 {[%clk 0:00:08.2]} 46... Ne4+ {[%clk 0:00:05.6]} 47. Kg1
{[%clk 0:00:07.5]} 47... Qg5 {[%clk 0:00:05.7]} 48. Bf3 {[%clk 0:00:06.1]} 48...
Qe3+ {[%clk 0:00:05.9]} 0-1

[Event "Early-Titled-Tuesday-Blitz-January-30-2024"]
[Site "Chess.com"]
[Date "2024.01.30"]
[Round "11"]
[White "azikom"]
[Black "Caroexpert"]
[Result "1-0"]
[WhiteElo "2726"]
[BlackElo "2587"]
[TimeControl "180+1"]
[EndTime "10:12:52 PST"]
[Termination "azikom won on time"]

1. d4 {[%clk 0:02:59.7]} 1... Nf6 {[%clk 0:02:50.5]} 2. c4 {[%clk 0:02:59.5]}
2... e6 {[%clk 0:02:50]} 3. Nc3 {[%clk 0:02:59.9]} 3... d5 {[%clk 0:02:49]} 4.
Bg5 {[%clk 0:02:58.9]} 4... dxc4 {[%clk 0:02:48.3]} 5. e3 {[%clk 0:02:56.1]}
5... a6 {[%clk 0:02:46.3]} 6. Bxc4 {[%clk 0:02:56.3]} 6... b5 {[%clk 0:02:46.1]}
7. Be2 {[%clk 0:02:56.8]} 7... c5 {[%clk 0:02:40.4]} 8. Bf3 {[%clk 0:02:56]}
8... Ra7 {[%clk 0:02:40.1]} 9. Nge2 {[%clk 0:02:55.6]} 9... Bb7 {[%clk
0:02:38.7]} 10. Bxb7 {[%clk 0:02:54.7]} 10... Rxb7 {[%clk 0:02:39.6]} 11. O-O
{[%clk 0:02:54.5]} 11... Nbd7 {[%clk 0:02:36.7]} 12. Ne4 {[%clk 0:02:46.2]}
12... Be7 {[%clk 0:02:27.4]} 13. Bxf6 {[%clk 0:02:40.7]} 13... gxf6 {[%clk
0:02:27]} 14. dxc5 {[%clk 0:02:35.3]} 14... Nxc5 {[%clk 0:02:25.4]} 15. Qxd8+
{[%clk 0:02:33.8]} 15... Kxd8 {[%clk 0:02:25.8]} 16. Nxc5 {[%clk 0:02:28.6]}
16... Bxc5 {[%clk 0:02:25.3]} 17. Rac1 {[%clk 0:02:29.2]} 17... Rc7 {[%clk
0:02:13.6]} 18. Rfd1+ {[%clk 0:02:14.6]} 18... Ke7 {[%clk 0:02:12.7]} 19. g3
{[%clk 0:01:51.7]} 19... Rhc8 {[%clk 0:02:09.8]} 20. Nf4 {[%clk 0:01:43.8]}
20... Bd6 {[%clk 0:02:04.6]} 21. Rxc7+ {[%clk 0:01:42.2]} 21... Rxc7 {[%clk
0:02:05.5]} 22. Rd2 {[%clk 0:01:34]} 22... a5 {[%clk 0:01:57.4]} 23. Kf1 {[%clk
0:01:24.8]} 23... b4 {[%clk 0:01:39]} 24. b3 {[%clk 0:01:18.1]} 24... Be5 {[%clk
0:01:12.4]} 25. Nd3 {[%clk 0:01:11.9]} 25... Bc3 {[%clk 0:01:11.1]} 26. Rd1
{[%clk 0:01:10.3]} 26... f5 {[%clk 0:01:04.8]} 27. Ke2 {[%clk 0:01:10.3]} 27...
Rc6 {[%clk 0:00:53.5]} 28. h3 {[%clk 0:01:10.3]} 28... Bf6 {[%clk 0:00:44.4]}
29. Rd2 {[%clk 0:01:08.9]} 29... Bc3 {[%clk 0:00:43.6]} 30. Rc2 {[%clk
0:01:08.7]} 30... Rd6 {[%clk 0:00:38]} 31. g4 {[%clk 0:01:07.6]} 31... Kf6
{[%clk 0:00:37.8]} 32. Rc1 {[%clk 0:01:00.2]} 32... e5 {[%clk 0:00:36.1]} 33.
Rc2 {[%clk 0:00:43.6]} 33... h5 {[%clk 0:00:35.4]} 34. gxf5 {[%clk 0:00:42.5]}
34... Kxf5 {[%clk 0:00:35.6]} 35. f3 {[%clk 0:00:43.1]} 35... e4 {[%clk
0:00:13.8]} 36. fxe4+ {[%clk 0:00:43.1]} 36... Kxe4 {[%clk 0:00:14.7]} 37. Nf2+
{[%clk 0:00:43.8]} 37... Kf5 {[%clk 0:00:12.4]} 38. Kf3 {[%clk 0:00:44]} 38...
Rf6 {[%clk 0:00:09.4]} 39. Ne4 {[%clk 0:00:41.9]} 39... Rc6 {[%clk 0:00:09.8]}
40. Rg2 {[%clk 0:00:40.3]} 40... Ke5 {[%clk 0:00:08.3]} 41. Rg5+ {[%clk
0:00:37.7]} 41... f5 {[%clk 0:00:08.6]} 42. Ng3 {[%clk 0:00:37.6]} 42... h4
{[%clk 0:00:06]} 43. Nxf5 {[%clk 0:00:31.7]} 43... Kf6 {[%clk 0:00:04.4]} 44.
Kg4 {[%clk 0:00:20.7]} 44... Be5 {[%clk 0:00:03.1]} 45. Nxh4 {[%clk 0:00:15.8]}
45... Rc2 {[%clk 0:00:03]} 46. Rg6+ {[%clk 0:00:14.4]} 46... Kf7 {[%clk
0:00:02.1]} 47. Rg5 {[%clk 0:00:13.9]} 1-0

[Event "Early-Titled-Tuesday-Blitz-January-30-2024"]
[Site "Chess.com"]
[Date "2024.01.30"]
[Round "11"]
[White "Zohid6"]
[Black "Mops_2004"]
[Result "0-1"]
[WhiteElo "2862"]
[BlackElo "2776"]
[TimeControl "180+1"]
[EndTime "10:12:53 PST"]
[Termination "Mops_2004 won by checkmate"]

1. d4 {[%clk 0:02:59.9]} 1... g6 {[%clk 0:02:59.8]} 2. e4 {[%clk 0:02:58.9]}
2... Bg7 {[%clk 0:03:00.2]} 3. Nc3 {[%clk 0:02:56.2]} 3... d6 {[%clk 0:03:00.5]}
4. f4 {[%clk 0:02:55.8]} 4... Nf6 {[%clk 0:03:00.1]} 5. Bd3 {[%clk 0:02:54.3]}
5... Nc6 {[%clk 0:03:00]} 6. e5 {[%clk 0:02:52.7]} 6... dxe5 {[%clk 0:03:00.2]}
7. dxe5 {[%clk 0:02:53.6]} 7... Nd5 {[%clk 0:03:00.1]} 8. Nf3 {[%clk 0:02:43.2]}
8... Nxc3 {[%clk 0:02:50.4]} 9. bxc3 {[%clk 0:02:44.1]} 9... O-O {[%clk
0:02:47.8]} 10. Qe2 {[%clk 0:02:40.3]} 10... Qd5 {[%clk 0:02:41.2]} 11. Be3
{[%clk 0:02:29.3]} 11... Bg4 {[%clk 0:02:08.9]} 12. O-O {[%clk 0:02:28]} 12...
Rad8 {[%clk 0:02:09]} 13. Rab1 {[%clk 0:02:27]} 13... b6 {[%clk 0:01:44.3]} 14.
h3 {[%clk 0:02:23]} 14... Bxf3 {[%clk 0:01:42.5]} 15. Qxf3 {[%clk 0:02:20.9]}
15... Qxf3 {[%clk 0:01:40.8]} 16. Rxf3 {[%clk 0:02:21.8]} 16... Na5 {[%clk
0:01:35.8]} 17. Rff1 {[%clk 0:02:15.8]} 17... e6 {[%clk 0:01:33.6]} 18. Rb4
{[%clk 0:02:00.1]} 18... f6 {[%clk 0:01:31.2]} 19. exf6 {[%clk 0:01:51.9]} 19...
Bxf6 {[%clk 0:01:31.4]} 20. Re4 {[%clk 0:01:52.1]} 20... Kf7 {[%clk 0:01:31.4]}
21. Bd2 {[%clk 0:01:46]} 21... Nb7 {[%clk 0:01:17.9]} 22. Re2 {[%clk 0:01:40.4]}
22... Nd6 {[%clk 0:01:07.7]} 23. Rfe1 {[%clk 0:01:38.4]} 23... Rfe8 {[%clk
0:01:04.7]} 24. a4 {[%clk 0:01:34.1]} 24... c5 {[%clk 0:01:04.3]} 25. c4 {[%clk
0:01:34.3]} 25... Nf5 {[%clk 0:01:00.8]} 26. g4 {[%clk 0:01:34.1]} 26... Nd4
{[%clk 0:00:57.2]} 27. Rf2 {[%clk 0:01:18.1]} 27... Bh4 {[%clk 0:00:56.9]} 28.
Re5 {[%clk 0:01:14.6]} 28... Bxf2+ {[%clk 0:00:55.5]} 29. Kxf2 {[%clk
0:01:15.5]} 29... Nxc2 {[%clk 0:00:55.8]} 30. Ke2 {[%clk 0:01:13.3]} 30... Nd4+
{[%clk 0:00:54.2]} 31. Ke3 {[%clk 0:01:12.9]} 31... Nc6 {[%clk 0:00:48.3]} 32.
Re4 {[%clk 0:01:12.9]} 32... e5 {[%clk 0:00:40.2]} 33. f5 {[%clk 0:01:10]} 33...
gxf5 {[%clk 0:00:40.6]} 34. gxf5 {[%clk 0:01:10.9]} 34... Rd4 {[%clk 0:00:40.5]}
35. Bc3 {[%clk 0:01:10.4]} 35... Rxe4+ {[%clk 0:00:40.7]} 36. Bxe4 {[%clk
0:01:11.3]} 36... Nd4 {[%clk 0:00:41]} 37. Be1 {[%clk 0:01:06.3]} 37... Kg7
{[%clk 0:00:31.4]} 38. Bh4 {[%clk 0:01:04.3]} 38... Rf8 {[%clk 0:00:14.5]} 39.
f6+ {[%clk 0:00:56.3]} 39... Kh6 {[%clk 0:00:14]} 40. Kd3 {[%clk 0:00:36.6]}
40... Ne6 {[%clk 0:00:13.5]} 41. Bf5 {[%clk 0:00:35.1]} 41... Ng5 {[%clk
0:00:12.8]} 42. Bxg5+ {[%clk 0:00:31.2]} 42... Kxg5 {[%clk 0:00:12.6]} 43. Ke4
{[%clk 0:00:28.7]} 43... Kxf6 {[%clk 0:00:10.8]} 44. Bxh7 {[%clk 0:00:27.8]}
44... Rd8 {[%clk 0:00:10.3]} 45. Kf3 {[%clk 0:00:20.8]} 45... Rh8 {[%clk
0:00:08.3]} 46. Be4 {[%clk 0:00:19.7]} 46... Rxh3+ {[%clk 0:00:08.8]} 47. Ke2
{[%clk 0:00:19.9]} 47... Kg5 {[%clk 0:00:07.7]} 48. Bg2 {[%clk 0:00:19.4]} 48...
Rc3 {[%clk 0:00:08.2]} 49. Bd5 {[%clk 0:00:19.1]} 49... Kf4 {[%clk 0:00:08]} 50.
Kd2 {[%clk 0:00:19.2]} 50... Ra3 {[%clk 0:00:08.3]} 51. Bc6 {[%clk 0:00:19]}
51... e4 {[%clk 0:00:08.5]} 52. Ke2 {[%clk 0:00:19.1]} 52... e3 {[%clk
0:00:08.8]} 53. Bb5 {[%clk 0:00:19.4]} 53... Ke5 {[%clk 0:00:08.8]} 54. a5
{[%clk 0:00:18]} 54... bxa5 {[%clk 0:00:08.7]} 55. Kd1 {[%clk 0:00:17.8]} 55...
Kd4 {[%clk 0:00:09.1]} 56. Kc2 {[%clk 0:00:18.7]} 56... e2 {[%clk 0:00:08.7]}
57. Kd2 {[%clk 0:00:19.1]} 57... Ra2+ {[%clk 0:00:09.3]} 58. Ke1 {[%clk
0:00:19.4]} 58... Ke3 {[%clk 0:00:09.8]} 59. Ba4 {[%clk 0:00:19.4]} 59... Ra1+
{[%clk 0:00:10.7]} 60. Bd1 {[%clk 0:00:19]} 60... Rxd1# {[%clk 0:00:11.2]} 0-1

[Event "Early-Titled-Tuesday-Blitz-January-30-2024"]
[Site "Chess.com"]
[Date "2024.01.30"]
[Round "11"]
[White "VitaliyBernadskiy"]
[Black "Njal28"]
[Result "1-0"]
[WhiteElo "2937"]
[BlackElo "3034"]
[TimeControl "180+1"]
[EndTime "10:12:55 PST"]
[Termination "VitaliyBernadskiy won by resignation"]

1. e4 {[%clk 0:03:00.9]} 1... e5 {[%clk 0:02:58.8]} 2. Nf3 {[%clk 0:03:00.6]}
2... Nc6 {[%clk 0:02:59.4]} 3. Bb5 {[%clk 0:03:00.4]} 3... a6 {[%clk 0:02:59.6]}
4. Ba4 {[%clk 0:03:00.8]} 4... d6 {[%clk 0:03:00.2]} 5. O-O {[%clk 0:03:00]}
5... Bd7 {[%clk 0:03:00.6]} 6. c3 {[%clk 0:03:00.2]} 6... Nge7 {[%clk
0:03:00.9]} 7. d4 {[%clk 0:03:00.4]} 7... Ng6 {[%clk 0:03:01.6]} 8. Re1 {[%clk
0:03:00.7]} 8... Be7 {[%clk 0:03:01.9]} 9. h3 {[%clk 0:02:59.8]} 9... O-O {[%clk
0:03:01.8]} 10. Nbd2 {[%clk 0:02:59.3]} 10... exd4 {[%clk 0:03:01.6]} 11. cxd4
{[%clk 0:02:59]} 11... Nb4 {[%clk 0:03:01.5]} 12. Bxd7 {[%clk 0:02:57.2]} 12...
Qxd7 {[%clk 0:03:02.4]} 13. Nf1 {[%clk 0:02:56.8]} 13... d5 {[%clk 0:02:58.2]}
14. e5 {[%clk 0:02:55.5]} 14... Qb5 {[%clk 0:02:49.3]} 15. Ng3 {[%clk
0:02:51.9]} 15... c5 {[%clk 0:02:15.1]} 16. Nf5 {[%clk 0:02:49.1]} 16... Nd3
{[%clk 0:01:52.5]} 17. a4 {[%clk 0:02:40.5]} 17... Qc4 {[%clk 0:01:52.5]} 18.
Ne3 {[%clk 0:02:29.4]} 18... Nxe1 {[%clk 0:01:43.4]} 19. Nxc4 {[%clk 0:02:24.3]}
19... Nxf3+ {[%clk 0:01:44.3]} 20. Qxf3 {[%clk 0:02:21.3]} 20... dxc4 {[%clk
0:01:45.2]} 21. Be3 {[%clk 0:02:16.1]} 21... cxd4 {[%clk 0:01:44.4]} 22. Bxd4
{[%clk 0:02:17]} 22... Rad8 {[%clk 0:01:44.7]} 23. Qe4 {[%clk 0:02:12]} 23... b5
{[%clk 0:01:40.8]} 24. axb5 {[%clk 0:02:11.8]} 24... axb5 {[%clk 0:01:41.7]} 25.
f4 {[%clk 0:01:58.1]} 25... f5 {[%clk 0:01:34.4]} 26. exf6 {[%clk 0:01:48.7]}
26... Bxf6 {[%clk 0:01:34.1]} 27. Bxf6 {[%clk 0:01:48.1]} 27... Rxf6 {[%clk
0:01:32]} 28. Ra8 {[%clk 0:01:40.9]} 28... Rxa8 {[%clk 0:00:58.8]} 29. Qxa8+
{[%clk 0:01:41.8]} 29... Kf7 {[%clk 0:00:59.4]} 30. Qd5+ {[%clk 0:01:40.7]}
30... Ke7 {[%clk 0:00:57.9]} 31. Qc5+ {[%clk 0:01:33.1]} 31... Ke6 {[%clk
0:00:44]} 32. g3 {[%clk 0:01:32.2]} 32... Rf5 {[%clk 0:00:42.3]} 33. Qc6+ {[%clk
0:01:25.9]} 33... Kf7 {[%clk 0:00:42.8]} 34. Qc7+ {[%clk 0:01:07.3]} 34... Ne7
{[%clk 0:00:42.2]} 35. Kg2 {[%clk 0:01:02.9]} 35... Rd5 {[%clk 0:00:40.1]} 36.
Kf3 {[%clk 0:01:02.1]} 36... Rd2 {[%clk 0:00:39.6]} 37. Qe5 {[%clk 0:01:01.5]}
37... Rd5 {[%clk 0:00:35.5]} 38. Qe4 {[%clk 0:01:01.6]} 38... Rd2 {[%clk
0:00:29.8]} 39. f5 {[%clk 0:00:53.3]} 39... Rxb2 {[%clk 0:00:21.7]} 40. Qe6+
{[%clk 0:00:53.4]} 40... Ke8 {[%clk 0:00:22.1]} 41. g4 {[%clk 0:00:49.5]} 41...
Rb1 {[%clk 0:00:20.7]} 42. Qe5 {[%clk 0:00:47.9]} 42... Kf7 {[%clk 0:00:12.5]}
43. Qe6+ {[%clk 0:00:47.3]} 43... Kf8 {[%clk 0:00:12.4]} 44. Qe5 {[%clk
0:00:46]} 44... b4 {[%clk 0:00:09.9]} 45. Qe4 {[%clk 0:00:39.5]} 45... Rb3+
{[%clk 0:00:06]} 46. Kf4 {[%clk 0:00:36.9]} 46... Rb2 {[%clk 0:00:06.6]} 47.
Qxc4 {[%clk 0:00:34.2]} 47... h6 {[%clk 0:00:05.2]} 48. Qd4 {[%clk 0:00:32.7]}
48... Rb1 {[%clk 0:00:03.3]} 49. Qd3 {[%clk 0:00:29.3]} 49... Rb2 {[%clk
0:00:02]} 50. h4 {[%clk 0:00:29.3]} 50... b3 {[%clk 0:00:02.2]} 51. g5 {[%clk
0:00:27.2]} 51... hxg5+ {[%clk 0:00:03.1]} 52. hxg5 {[%clk 0:00:27.7]} 52... Rc2
{[%clk 0:00:02.7]} 53. Qxb3 {[%clk 0:00:26.3]} 53... Rc8 {[%clk 0:00:02.3]} 54.
g6 {[%clk 0:00:25]} 54... Ke8 {[%clk 0:00:02.3]} 55. Qf7+ {[%clk 0:00:24.7]}
55... Kd7 {[%clk 0:00:03]} 56. Qxg7 {[%clk 0:00:24.8]} 56... Rc4+ {[%clk
0:00:03.7]} 57. Kf3 {[%clk 0:00:19.5]} 57... Kd6 {[%clk 0:00:01.5]} 58. Qf6+
{[%clk 0:00:19.1]} 58... Kd5 {[%clk 0:00:02.2]} 59. Qe6+ {[%clk 0:00:18.7]}
59... Kd4 {[%clk 0:00:02.2]} 60. Qxe7 {[%clk 0:00:18.9]} 1-0